fUSD/lending_fUSD_20240209
["ID","MTS","AMOUNT","RATE_DAILY","PERIOD"]
[313624604,1707487268692,-677.1,0.00042739,31]
[313624605,1707487268723,-1314.52,0.00042739,31]
[313624606,1707487268798,-533.5365792,0.00042739,31]
[313624607,1707487268831,-1064.38,0.00042739,31]
[313624608,1707487268865,-1610.95,0.00042739,31]
[313624609,1707487268897,-500.0,0.00042739,31]
[313624610,1707487268929,-987.1,0.00042739,31]
[313624611,1707487268960,-291.84440129,0.00042739,31]
[313624612,1707487268992,-558.21,0.00042739,31]
[313624613,1707487269023,-500.0,0.00042739,31]
[313624614,1707487269054,-500.0,0.00042739,31]
[313624615,1707487269085,-1288.44,0.00042739,31]
[313624616,1707487269115,-500.0,0.00042739,31]
[313624617,1707487269147,-3513.3,0.00042739,31]
[313624618,1707487269178,-2977.12,0.00042739,31]
[313624619,1707487269209,-923.0,0.00042739,31]
[313624620,1707487269241,-3585.81,0.00042739,31]
[313624621,1707487269276,-1111.32,0.00042739,31]
[313624622,1707487269310,-4092.82,0.00042739,31]
[313624623,1707487269344,-500.0,0.00042739,31]
[313624624,1707487269377,-500.0,0.00042739,31]
[313624625,1707487269410,-810.54,0.00042739,31]
[313624626,1707487269443,-1445.78,0.00042739,31]
[313624627,1707487269476,-1968.03,0.00042739,31]
[313624628,1707487269507,-2143.34,0.00042739,31]
[313624629,1707487269539,-500.0,0.00042739,31]
[313624630,1707487269571,-842.81,0.00042739,31]
[313624631,1707487269606,-4396.32,0.00042739,31]
[313624632,1707487269636,-500.0,0.00042739,31]
[313624633,1707487269667,-500.0,0.00042739,31]
[313624634,1707487269697,-500.0,0.00042739,31]
[313624635,1707487269727,-1531.14,0.00042739,31]
[313624636,1707487269758,-500.0,0.00042739,31]
[313624637,1707487269788,-3098.41,0.00042739,31]
[313624638,1707487269818,-500.0,0.00042739,31]
[313624639,1707487269847,-500.0,0.00042739,31]
[313624640,1707487269878,-3134.49,0.00042739,31]
[313624641,1707487269907,-500.0,0.00042739,31]
[313624642,1707487269937,-500.0,0.00042739,31]
[313624643,1707487269968,-1285.67,0.00042739,31]
[313624644,1707487270006,-805.62,0.00042739,31]
[313624645,1707487270038,-1725.82,0.00042739,31]
[313624646,1707487270070,-850.45,0.00042739,31]
[313624647,1707487270102,-1105.94,0.00042739,31]
[313624648,1707487270142,-500.0,0.00042739,31]
[313624649,1707487270178,-500.0,0.00042739,31]
[313624650,1707487270211,-555.42,0.00042739,31]
[313624651,1707487270242,-500.0,0.00042739,31]
[313624652,1707487270277,-600.94,0.00042739,31]
[313624653,1707487270310,-24179.07,0.00042739,31]
[313624654,1707487270344,-1181.34,0.00042739,31]
[313624655,1707487270379,-1991.35,0.00042739,31]
[313624656,1707487270412,-500.0,0.00042739,31]
[313624657,1707487270445,-609.11,0.00042739,31]
[313624658,1707487270481,-422.45575788,0.00042739,31]
[313624659,1707487270518,-2548.88,0.00042739,31]
[313624660,1707487270553,-289.54305571,0.00042739,31]
[313624661,1707487270587,-2801.13,0.00042739,31]
[313624662,1707487270619,-500.0,0.00042739,31]
[313624663,1707487270650,-565.44,0.00042739,31]
[313624664,1707487270683,-804.55,0.00042739,31]
[313624665,1707487270714,-500.0,0.00042739,31]
[313624666,1707487270748,-500.0,0.00042739,31]
[313624667,1707487270779,-2278.6,0.00042739,31]
[313624668,1707487270811,-696.66,0.00042739,31]
[313624669,1707487270850,-1670.47,0.00042739,31]
[313624670,1707487270883,-500.0,0.00042739,31]
[313624671,1707487270915,-885.62,0.00042739,31]
[313624672,1707487270947,-2437.96,0.00042739,31]
[313624673,1707487270978,-500.0,0.00042739,31]
[313624674,1707487271010,-1332.36,0.00042739,31]
[313624675,1707487271041,-500.0,0.00042739,31]
[313624676,1707487271071,-500.0,0.00042739,31]
[313624677,1707487271102,-651.87,0.00042739,31]
[313624678,1707487271136,-969.78,0.00042739,31]
[313624679,1707487271167,-4470.0,0.00042739,31]
[313624680,1707487271199,-500.0,0.00042739,31]
[313624681,1707487271229,-1146.57,0.00042739,31]
[313624682,1707487271263,-525.41243215,0.00042739,31]
[313624683,1707487271296,-500.0,0.00042739,31]
[313624684,1707487271329,-500.0,0.00042739,31]
[313624685,1707487271366,-500.0,0.00042739,31]
[313624686,1707487271402,-10078.95,0.00042739,31]
[313624687,1707487271437,-500.0,0.00042739,31]
[313624688,1707487271473,-1196.87,0.00042739,31]
[313624689,1707487271510,-4162.47,0.00042739,31]
[313624690,1707487271543,-1928.88,0.00042739,31]
[313624691,1707487271575,-528.54,0.00042739,31]
[313624692,1707487271607,-2259.42,0.00042739,31]
[313624693,1707487271637,-500.0,0.00042739,31]
[313624694,1707487271674,-1066.85,0.00042739,31]
[313624695,1707487271705,-5424.04,0.00042739,31]
[313624696,1707487271738,-500.0,0.00042739,31]
[313624697,1707487271769,-500.0,0.00042739,31]
[313624698,1707487271800,-1913.56,0.00042739,31]
[313624699,1707487271833,-1793.82,0.00042739,31]
[313624700,1707487271865,-500.0,0.00042739,31]
[313624701,1707487271895,-3060.13,0.00042739,31]
[313624702,1707487271925,-500.0,0.00042739,31]
[313624703,1707487271959,-503.01382611,0.00042739,31]
[313624704,1707487271990,-500.0,0.00042739,31]
[313624705,1707487272020,-5683.63,0.00042739,31]
[313624706,1707487272055,-1958.55,0.00042739,31]
[313624707,1707487272089,-1516.62,0.00042739,31]
[313624708,1707487272122,-652.08,0.00042739,31]
[313624709,1707487272154,-500.0,0.00042739,31]
[313624710,1707487272186,-2458.11,0.00042739,31]
[313624711,1707487272328,-500.0,0.00042739,31]
[313624712,1707487272364,-500.0,0.00042739,31]
[313624713,1707487272398,-907.73,0.00042739,31]
[313624714,1707487272431,-502.16,0.00042739,31]
[313624715,1707487272464,-4451.57,0.00042739,31]
[313624716,1707487272496,-688.57,0.00042739,31]
[313624717,1707487272527,-500.0,0.00042739,31]
[313624718,1707487272557,-3925.43,0.00042739,31]
[313624719,1707487272588,-645.34612275,0.00042739,31]
[313624720,1707487272619,-908.3,0.00042739,31]
[313624721,1707487272651,-500.0,0.00042739,31]
[313624722,1707487272683,-500.0,0.00042739,31]
[313624723,1707487272715,-811.04,0.00042739,31]
[313624724,1707487272747,-407.672772,0.00042739,31]
[313624725,1707487272780,-2239.6,0.00042739,31]
[313624726,1707487272812,-500.0,0.00042739,31]
[313624727,1707487272847,-500.0,0.00042739,31]
[313624728,1707487272880,-500.0,0.00042739,31]
[313624729,1707487272911,-8191.36,0.00042739,31]
[313624730,1707487272943,-803.61287876,0.00042888,32]
[313624731,1707487272974,-447.4134077,0.000429,30]
[313624732,1707487273006,-4450.89485242,0.000429,30]
[313624733,1707487273039,-8480.96811854,0.000429,30]
[313624734,1707487273070,-8480.96811849,0.000429,30]
[313624735,1707487273101,-8480.96811849,0.000429,30]
[313624736,1707487273131,-8480.96811849,0.000429,30]
[313624737,1707487273164,-8480.96811849,0.000429,30]
[313624738,1707487273195,-8480.96811849,0.000429,30]
[313624739,1707487273227,-8480.96811849,0.000429,30]
[313624740,1707487273257,-8480.96811849,0.000429,30]
[313624741,1707487273289,-8480.96811849,0.000429,30]
[313624742,1707487273321,-500.0,0.00043,30]
[313624743,1707487273354,-229.0,0.00043,32]
[313624744,1707487273385,-187.86045965,0.00043013,31]
[313624745,1707487273417,-500.0,0.00043013,31]
[313624746,1707487273448,-500.0,0.00043013,31]
[313624747,1707487273481,-500.0,0.00043013,31]
[313624748,1707487273519,-522.01534058,0.00043013,31]
[313624749,1707487273553,-500.0,0.00043013,31]
[313624750,1707487273592,-500.0,0.00043013,31]
[313624751,1707487273629,-500.0,0.00043013,31]
[313624752,1707487273663,-335.05776274,0.00043013,31]
[313624753,1707487273694,-500.0,0.00043013,31]
[313624754,1707487273724,-500.0,0.00043013,31]
[313624755,1707487273757,-500.0,0.00043013,31]
[313624756,1707487273788,-500.0,0.00043013,31]
[313624757,1707487273818,-500.0,0.00043013,31]
[313624758,1707487273849,-621.45850627,0.00043013,31]
[313624759,1707487273880,-500.0,0.00043013,31]
[313624760,1707487273912,-500.0,0.00043013,31]
[313624761,1707487273944,-500.0,0.00043013,31]
[313624762,1707487273975,-500.0,0.00043013,31]
[313624763,1707487274006,-415.84916385,0.00043013,31]
[313624764,1707487274042,-500.0,0.00043013,31]
[313624765,1707487274073,-500.0,0.00043013,31]
[313624766,1707487274106,-500.0,0.00043013,31]
[313624767,1707487274139,-500.0,0.00043013,31]
[313624768,1707487274172,-500.0,0.00043013,31]
[313624769,1707487274204,-527.71,0.00043013,31]
[313624770,1707487274235,-519.18302764,0.00043013,31]
[313624771,1707487274268,-500.0,0.00043013,31]
[313624772,1707487274302,-500.0,0.00043013,31]
[313624773,1707487274335,-500.0,0.00043013,31]
[313624774,1707487274370,-500.0,0.00043013,31]
[313624775,1707487274403,-269.21224569,0.00043013,31]
[313624776,1707487274438,-500.0,0.00043013,31]
[313624777,1707487274472,-255.77008338,0.00043013,31]
[313624778,1707487274503,-368.43665064,0.00043013,31]
[313624779,1707487274540,-500.0,0.00043013,31]
[313624780,1707487274573,-500.0,0.00043013,31]
[313624781,1707487274606,-500.0,0.00043013,31]
[313624782,1707487274638,-516.9666999,0.00043013,31]
[313624783,1707487274670,-500.0,0.00043013,31]
[313624784,1707487274705,-500.0,0.00043013,31]
[313624785,1707487274738,-500.0,0.00043013,31]
[313624786,1707487274771,-1417.37,0.00043013,31]
[313624787,1707487274803,-500.0,0.00043013,31]
[313624788,1707487274836,-500.0,0.00043013,31]
[313624789,1707487274869,-500.0,0.00043013,31]
[313624790,1707487274902,-500.0,0.00043013,31]
[313624791,1707487274936,-500.0,0.00043013,31]
[313624792,1707487274969,-500.0,0.00043013,31]
[313624793,1707487275001,-500.0,0.00043013,31]
[313624794,1707487275035,-448.37654111,0.00043013,31]
[313624795,1707487275069,-500.0,0.00043013,31]
[313624796,1707487275102,-500.0,0.00043013,31]
[313624797,1707487275137,-1448.12,0.00043013,31]
[313624798,1707487275170,-500.0,0.00043013,31]
[313624799,1707487275203,-500.0,0.00043013,31]
[313624800,1707487275480,-500.0,0.00043013,31]
[313624801,1707487275517,-500.0,0.00043013,31]
[313624802,1707487275550,-500.0,0.00043013,31]
[313624803,1707487275583,-500.0,0.00043013,31]
[313624804,1707487275617,-912.23,0.00043013,31]
[313624805,1707487275651,-500.0,0.00043013,31]
[313624806,1707487275683,-555.25654995,0.00043013,31]
[313624807,1707487275714,-500.0,0.00043013,31]
[313624808,1707487275746,-158.31346913,0.00043013,31]
[313624809,1707487275782,-870.43,0.00043013,31]
[313624810,1707487275815,-500.0,0.00043013,31]
[313624811,1707487275847,-500.0,0.00043013,31]
[313624812,1707487275880,-500.0,0.00043013,31]
[313624813,1707487275913,-500.0,0.00043013,31]
[313624814,1707487275946,-500.0,0.00043013,31]
[313624815,1707487275982,-500.0,0.00043013,31]
[313624816,1707487276017,-500.0,0.00043013,31]
[313624817,1707487276051,-500.0,0.00043013,31]
[313624818,1707487276086,-500.0,0.00043013,31]
[313624819,1707487276120,-500.0,0.00043013,31]
[313624820,1707487276155,-500.0,0.00043013,31]
[313624821,1707487276190,-500.0,0.00043013,31]
[313624822,1707487276223,-500.0,0.00043013,31]
[313624823,1707487276256,-620.97,0.00043013,31]
[313624824,1707487276292,-369.32033608,0.00043013,31]
[313624825,1707487276326,-500.0,0.00043013,31]
[313624826,1707487276361,-500.0,0.00043013,31]
[313624827,1707487276396,-500.0,0.00043013,31]
[313624828,1707487276430,-500.0,0.00043013,31]
[313624829,1707487276464,-564.88,0.00043013,31]
[313624830,1707487276505,-500.0,0.00043013,31]
[313624831,1707487276540,-500.0,0.00043013,31]
[313624832,1707487276575,-500.0,0.00043013,31]
[313624833,1707487276614,-650.82,0.00043013,31]
[313624834,1707487276647,-500.0,0.00043013,31]
[313624835,1707487276682,-500.0,0.00043013,31]
[313624836,1707487276719,-500.0,0.00043013,31]
[313624837,1707487276751,-500.0,0.00043013,31]
[313624838,1707487276783,-351.03582685,0.00043013,31]
[313624839,1707487276814,-303.00504008,0.00043013,31]
[313624840,1707487276848,-2937.23,0.00043013,31]
[313624841,1707487276882,-500.0,0.00043013,31]
[313624842,1707487276915,-416.71015299,0.00043013,31]
[313624843,1707487276949,-500.0,0.00043013,31]
[313624844,1707487276981,-500.0,0.00043013,31]
[313624845,1707487277014,-703.51,0.00043013,31]
[313624846,1707487277047,-569.08,0.00043013,31]
[313624847,1707487277080,-500.0,0.00043013,31]
[313624848,1707487277116,-500.0,0.00043013,31]
[313624849,1707487277151,-500.0,0.00043013,31]
[313624850,1707487277188,-500.0,0.00043013,31]
[313624851,1707487277222,-500.0,0.00043013,31]
[313624852,1707487277253,-500.0,0.00043013,31]
[313624853,1707487277286,-667.56,0.00043013,31]
[313624854,1707487277318,-500.0,0.00043013,31]
[313624855,1707487277353,-500.0,0.00043013,31]
[313624856,1707487277386,-500.0,0.00043013,31]
[313624857,1707487277420,-526.59645859,0.00043013,31]
[313624858,1707487277452,-500.0,0.00043013,31]
[313624859,1707487277486,-500.0,0.00043013,31]
[313624860,1707487277518,-500.0,0.00043013,31]
[313624861,1707487277554,-552.26364637,0.00043013,31]
[313624862,1707487277586,-500.0,0.00043013,31]
[313624863,1707487277619,-500.0,0.00043013,31]
[313624864,1707487277651,-500.0,0.00043013,31]
[313624865,1707487277682,-521.74297674,0.00043013,31]
[313624866,1707487277713,-225.96574829,0.00043013,31]
[313624867,1707487277744,-500.0,0.00043013,31]
[313624868,1707487277775,-500.0,0.00043013,31]
[313624869,1707487277806,-246.63827697,0.00043013,31]
[313624870,1707487277837,-500.0,0.00043013,31]
[313624871,1707487277919,-500.0,0.00043013,31]
[313624872,1707487277954,-500.0,0.00043013,31]
[313624873,1707487277987,-500.0,0.00043013,31]
[313624874,1707487278021,-500.0,0.00043013,31]
[313624875,1707487278054,-500.0,0.00043013,31]
[313624876,1707487278085,-500.0,0.00043013,31]
[313624877,1707487278118,-500.0,0.00043013,31]
[313624878,1707487278153,-538.74,0.00043013,31]
[313624879,1707487278186,-500.0,0.00043013,31]
[313624880,1707487278220,-500.0,0.00043013,31]
[313624881,1707487278252,-587.90008478,0.00043013,31]
[313624882,1707487278286,-500.0,0.00043013,31]
[313624883,1707487278320,-375.48998532,0.00043013,31]
[313624884,1707487278355,-791.57,0.00043013,31]
[313624885,1707487278389,-500.0,0.00043013,31]
[313624886,1707487278424,-514.45,0.00043013,31]
[313624887,1707487278460,-500.0,0.00043013,31]
[313624888,1707487278494,-500.0,0.00043013,31]
[313624889,1707487278528,-500.0,0.00043013,31]
[313624890,1707487278563,-500.0,0.00043013,31]
[313624891,1707487278599,-500.0,0.00043013,31]
[313624892,1707487278634,-500.0,0.00043013,31]
[313624893,1707487278669,-150.0,0.00043013,31]
[313624894,1707487278705,-882.64,0.00043013,31]
[313624895,1707487278742,-500.0,0.00043013,31]
[313624896,1707487278777,-500.0,0.00043013,31]
[313624897,1707487278810,-302.64436119,0.00043013,31]
[313624898,1707487278844,-292.35629151,0.00043013,31]
[313624899,1707487278878,-500.0,0.00043013,31]
[313624900,1707487278911,-500.0,0.00043013,31]
[313624901,1707487278943,-500.0,0.00043013,31]
[313624902,1707487278976,-500.0,0.00043013,31]
[313624903,1707487279010,-500.0,0.00043013,31]
[313624904,1707487279044,-515.87403474,0.00043013,31]
[313624905,1707487279079,-500.0,0.00043013,31]
[313624906,1707487279113,-500.0,0.00043013,31]
[313624907,1707487279149,-654.43,0.00043013,31]
[313624908,1707487279186,-500.0,0.00043013,31]
[313624909,1707487279224,-500.0,0.00043013,31]
[313624910,1707487279261,-503.59,0.00043013,31]
[313624911,1707487279303,-500.0,0.00043013,31]
[313624912,1707487279342,-500.0,0.00043013,31]
[313624913,1707487279381,-500.0,0.00043013,31]
[313624914,1707487279420,-638.43499041,0.00043013,31]
[313624915,1707487279457,-500.0,0.00043013,30]
[313624916,1707487279496,-500.0,0.00043013,31]
[313624917,1707487279534,-500.0,0.00043013,31]
[313624918,1707487279571,-500.0,0.00043013,31]
[313624919,1707487279608,-500.0,0.00043013,31]
[313624920,1707487279644,-556.45,0.00043013,31]
[313624921,1707487279678,-500.0,0.00043013,31]
[313624922,1707487279711,-793.37,0.00043013,31]
[313624923,1707487279744,-500.0,0.00043013,31]
[313624924,1707487279776,-500.0,0.00043013,31]
[313624925,1707487279809,-767.91,0.00043013,31]
[313624926,1707487279842,-502.21330541,0.00043013,31]
[313624927,1707487279877,-675.64,0.00043013,31]
[313624928,1707487279910,-500.0,0.00043013,31]
[313624929,1707487279943,-500.0,0.00043013,31]
[313624930,1707487279974,-566.47,0.00043013,31]
[313624931,1707487280012,-500.0,0.00043013,31]
[313624932,1707487280052,-959.36,0.00043013,31]
[313624933,1707487280086,-500.0,0.00043013,31]
[313624934,1707487280121,-500.0,0.00043013,31]
[313624935,1707487280156,-500.0,0.00043013,31]
[313624936,1707487280191,-906.86,0.00043013,31]
[313624937,1707487280226,-3115.29,0.00043013,31]
[313624938,1707487280261,-540.08,0.00043013,31]
[313624939,1707487280299,-518.84,0.00043013,31]
[313624940,1707487280338,-518.42,0.00043013,31]
[313624941,1707487280386,-500.0,0.00043013,31]
[313624942,1707487280423,-8148.69,0.00043013,31]
[313624943,1707487280461,-792.43,0.00043013,31]
[313624944,1707487280497,-500.0,0.00043013,31]
[313624945,1707487280533,-500.0,0.00043013,31]
[313624946,1707487280569,-500.0,0.00043013,31]
[313624947,1707487280608,-562.48,0.00043013,31]
[313624948,1707487280646,-2542.57,0.00043013,31]
[313624949,1707487280683,-189.60307616,0.00043013,31]
[313624950,1707487280721,-500.0,0.00043013,31]
[313624951,1707487280757,-1215.64021893,0.00043013,31]
[313624952,1707487281921,3607.21299399,0.00021918,2]
[313624953,1707487281944,4799.00700601,0.00021918,2]
[313624954,1707487288362,197.87621675,0.00021917,2]
[313624955,1707487294105,282.70188833,0.00021916,2]
[313624956,1707487295597,2981.4637,0.00022426,2]
[313624957,1707487337509,250.0,0.00021918,2]
[313624958,1707487356370,157.11,0.0002187,2]
[313624959,1707487356862,150.0,0.0002187,2]
[313624960,1707487364113,367.36,0.00022107,2]
[313624961,1707487365845,367.36,0.00022167,2]
[313624962,1707487366087,367.36,0.00022228,2]
[313624963,1707487366316,367.36,0.00022289,2]
[313624964,1707487366546,367.36,0.00022349,2]
[313624965,1707487366783,367.36,0.0002241,2]
[313624966,1707487366985,367.36,0.0002247,2]
[313624967,1707487374251,200.0,0.00021835,2]
[313624968,1707487406631,840.0,0.00021835,2]
[313624969,1707487450666,23900.0,0.00021835,2]
[313624972,1707487487843,328.48,0.00021813,2]
[313624973,1707487523096,203.43076038,0.00021918,2]
[313624974,1707487541725,250.0,0.0002182,2]
[313624975,1707487588345,283.98955369,0.00021918,2]
[313624976,1707487589415,1102.30328697,0.00021918,2]
[313624977,1707487590234,6109.26214798,0.00021918,2]
[313624978,1707487590500,3139.99367387,0.00021629,2]
[313624979,1707487590576,2000.0,0.0002181,2]
[313624980,1707487592512,3609.20176085,0.00021918,2]
[313624981,1707487594703,285.44492535,0.00021918,2]
[313624982,1707487595427,624.74925821,0.00021856,2]
[313624983,1707487596567,19047.95231035,0.00021918,2]
[313624984,1707487599119,5212.35686383,0.00021918,2]
[313624985,1707487599826,155.0,0.00021918,2]
[313624986,1707487600838,162.38826991,0.0002049,2]
[313624987,1707487604244,155.0,0.00021629,2]
[313624988,1707487608948,221.77404607,0.000222,2]
[313624989,1707487616525,25443.63,0.00021807,2]
[313624990,1707487634768,5188.31,0.00021807,2]
[313624991,1707487637494,544.25,0.0001989,2]
[313624992,1707487637716,544.25,0.00022153,2]
[313624993,1707487740772,177.11,0.00021999,2]
[313624994,1707487747107,200.0,0.00021834,2]
[313624995,1707487773370,750.0,0.00021825,2]
[313624996,1707487789388,868.3912,0.00022467,2]
[313625001,1707487803225,238.78,0.00022001,2]
[313625002,1707487803468,238.78,0.00022061,2]
[313625003,1707487803690,238.78,0.00022122,2]
[313625004,1707487803915,238.78,0.00022182,2]
[313625005,1707487804335,238.78,0.00022242,2]
[313625006,1707487804536,238.78,0.00022303,2]
[313625007,1707487804634,150.0,0.00021837,2]
[313625008,1707487804754,238.78,0.00022363,2]
[313625009,1707487804980,238.78,0.00022423,2]
[313625010,1707487805188,238.78,0.00022484,2]
[313625011,1707487809954,243.14,0.00021827,2]
[313625012,1707487829647,200.0,0.00021827,2]
[313625019,1707487832276,-238.78,0.00022544,2]
[313625020,1707487832289,-472.0,0.00022547,2]
[313625021,1707487832298,-177.11,0.00022547,2]
[313625022,1707487832307,-162.413942,0.00022565,2]
[313625023,1707487832316,-300.0,0.00022566,2]
[313625024,1707487832326,-150.0,0.00022566,2]
[313625025,1707487832334,-1496.77636388,0.00022567,2]
[313625026,1707487832350,-399.2023011,0.00022567,2]
[313625027,1707487832364,-558.52308031,0.00022567,2]
[313625028,1707487832381,-576.32490571,0.00022567,2]
[313625029,1707487832393,-1420.31665026,0.00022567,2]
[313625030,1707487832406,-1511.39486568,0.00022567,2]
[313625031,1707487832418,-3208.00515943,0.00022567,2]
[313625032,1707487832430,-10180.76587363,0.00022567,2]
[313625033,1707487832439,-238.78,0.00022604,2]
[313625034,1707487832449,-1501.23312637,0.00022657,2]
[313625035,1707487832460,-1298.31797469,0.00022657,2]
[313625036,1707487832472,-1721.9738624,0.00022657,2]
[313625037,1707487832484,-250.0,0.00022657,2]
[313625038,1707487832497,-2274.18238922,0.00022657,2]
[313625039,1707487832509,-762.05431048,0.00022657,2]
[313625040,1707487832539,-567.0516138,0.00022657,2]
[313625041,1707487832551,-1296.49574602,0.00022657,2]
[313625042,1707487832562,-759.8606458,0.00022657,2]
[313625043,1707487832579,-658.25,0.00022657,2]
[313625044,1707487832591,-917.62,0.00022657,2]
[313625045,1707487832603,-6446.81740078,0.00022657,2]
[313625047,1707487832619,-145.66553358,0.00022657,2]
[313625049,1707487832629,-238.78,0.00022665,2]
[313625051,1707487832640,-464.63770816,0.00022665,2]
[313625061,1707487832721,-35.36229184,0.00022665,2]
[313625063,1707487832731,-2428.82231068,0.00022665,2]
[313625091,1707487838427,-730.28059434,0.00022665,2]
[313625092,1707487838438,-568.03579621,0.00022665,2]
[313625093,1707487838447,-932.00930305,0.00022665,2]
[313625094,1707487838458,-324.6447,0.00022667,2]
[313625095,1707487838468,-37210.64044454,0.00022667,2]
[313625096,1707487839440,-600.0,0.00022667,2]
[313625097,1707487839505,-1029.18978655,0.00022667,2]
[313625192,1707487841017,-1007.45044705,0.00022667,2]
[313625193,1707487841765,-26595.33912186,0.00022667,2]
[313625194,1707487841774,-2141.688,0.00022667,2]
[313625195,1707487841783,-505.3,0.00022667,2]
[313625196,1707487841793,-398.64734411,0.00022674,2]
[313625197,1707487841802,-238.78,0.00022725,2]
[313625198,1707487841812,-162.41394199,0.00022733,2]
[313625199,1707487841821,-499.99,0.00022764,2]
[313625200,1707487841831,-155.32222678,0.00022766,2]
[313625201,1707487841841,-699.73561086,0.00022768,2]
[313625202,1707487841850,-238.78,0.00022785,2]
[313625203,1707487841860,-307.71962097,0.00022799,2]
[313625204,1707487841870,-156.52695761,0.00022799,2]
[313625205,1707487841878,-692.19851741,0.000228,2]
[313625206,1707487841888,-800.0,0.00022816,2]
[313625207,1707487841897,-307.71962097,0.00022824,2]
[313625208,1707487841906,-238.78,0.00022846,2]
[313625209,1707487841915,-156.5269576,0.00022849,2]
[313625210,1707487841923,-307.71962097,0.0002285,2]
[313625211,1707487841933,-307.71962097,0.00022875,2]
[313625212,1707487841942,-1663.68728648,0.00022897,2]
[313625213,1707487841951,-1316.08392254,0.00022897,2]
[313625214,1707487841960,-849.60078502,0.00022897,2]
[313625215,1707487841970,-643.94089789,0.00022897,2]
[313625216,1707487841979,-3159.13814169,0.00022897,2]
[313625217,1707487841988,-197.76882441,0.00022897,2]
[313625218,1707487841997,-355.50576041,0.00022897,2]
[313625219,1707487842006,-24426.42500201,0.00022897,2]
[313625220,1707487842016,-2912.99141125,0.00022898,2]
[313625221,1707487842025,-1052.2086177,0.00022898,2]
[313625222,1707487842034,-2628.18882031,0.00022899,2]
[313625223,1707487842053,-50005.25006679,0.00022899,2]
[313625224,1707487844894,249.99,0.00022072,2]
[313625261,1707487845218,-499.99,0.00022897,2]
[313625264,1707487845228,-499.14780481,0.00022899,2]
[313625267,1707487845240,-14320.29511712,0.00022899,2]
[313625272,1707487845251,-600.66605365,0.00022899,2]
[313625275,1707487845263,-833.79910387,0.00022899,2]
[313625278,1707487845280,-5022.40860006,0.00022899,2]
[313625283,1707487845296,-1432.75357665,0.00022899,2]
[313625313,1707487845467,-29286.55978005,0.00022899,2]
[313625336,1707487846887,-10058.4,0.00022899,2]
[313625337,1707487846903,-4774.1292,0.00022899,2]
[313625338,1707487846947,-1247.199999,0.00022899,2]
[313625339,1707487846958,-8383.44103302,0.00022899,2]
[313625340,1707487847006,-3736.7819811,0.00022899,2]
[313625425,1707487848104,-132651.9088896,0.00022899,2]
[313625428,1707487848116,-7464.02625058,0.00022899,2]
[313625430,1707487848128,-2999.99999999,0.00022899,2]
[313625432,1707487848143,-39989.07316658,0.00022899,2]
[313625435,1707487848155,-4608.67713029,0.00022899,2]
[313625438,1707487848175,-534.0,0.00022899,2]
[313625440,1707487848186,-5233.73200614,0.00022899,2]
[313625442,1707487848198,-1125.387,0.00022899,2]
[313625445,1707487848213,-21289.68192894,0.00022899,2]
[313625448,1707487848233,-22375.21559145,0.00022899,2]
[313625449,1707487848242,-162.83781801,0.00022899,2]
[313625450,1707487848252,-156.5269576,0.00022899,2]